fUSD/lending_fUSD_20250811
["ID","MTS","AMOUNT","RATE_DAILY","PERIOD"]
[378462583,1754875842523,-976.86,0.00018858,2]
[378462585,1754875842532,-400.0,0.00018858,2]
[378462587,1754875842542,-701.6,0.00018858,2]
[378462589,1754875842551,-558.93,0.00018858,2]
[378462591,1754875842560,-2355.76,0.00018858,2]
[378462593,1754875842569,-400.0,0.00018858,2]
[378462595,1754875842579,-400.0,0.00018858,2]
[378462597,1754875842588,-400.0,0.00018858,2]
[378462599,1754875842598,-400.0,0.00018858,2]
[378462600,1754875842607,-596.11,0.00018858,2]
[378462601,1754875842617,-827.77,0.00018858,2]
[378462602,1754875842627,-843.45,0.00018858,2]
[378462603,1754875842637,-855.09,0.00018858,2]
[378462604,1754875842646,-1195.12,0.00018858,2]
[378462605,1754875842656,-649.25,0.00018858,2]
[378462606,1754875842666,-1338.33,0.00018858,2]
[378462607,1754875842676,-1219.04,0.00018858,2]
[378462608,1754875842686,-811.39,0.00018858,2]
[378462609,1754875842696,-1922.34,0.00018858,2]
[378462610,1754875842706,-400.0,0.00018858,2]
[378462612,1754875842716,-400.0,0.00018858,2]
[378462615,1754875842726,-1067.33,0.00018858,2]
[378462618,1754875842736,-400.0,0.00018858,2]
[378462621,1754875842746,-925.81,0.00018858,2]
[378462623,1754875842755,-1043.83,0.00018858,2]
[378462625,1754875842765,-400.0,0.00018858,2]
[378462627,1754875842775,-784.77,0.00018858,2]
[378462629,1754875842787,-772.21,0.00018858,2]
[378462631,1754875842806,-528.63,0.00018858,2]
[378462633,1754875842826,-400.0,0.00018858,2]
[378462635,1754875842835,-955.71,0.00018858,2]
[378462638,1754875842845,-1493.27,0.00018858,2]
[378462642,1754875842854,-1031.54,0.00018858,2]
[378462644,1754875842863,-1661.46,0.00018858,2]
[378462647,1754875842876,-1640.78,0.00018858,2]
[378462650,1754875842885,-1214.44,0.00018858,2]
[378462652,1754875842894,-400.0,0.00018858,2]
[378462654,1754875842903,-1851.83,0.00018858,2]
[378462656,1754875842913,-679.17,0.00018858,2]
[378462658,1754875842922,-851.95,0.00018858,2]
[378462660,1754875842931,-400.0,0.00018858,2]
[378462662,1754875842940,-400.0,0.00018858,2]
[378462664,1754875842949,-1403.05,0.00018858,2]
[378462666,1754875842958,-400.0,0.00018858,2]
[378462668,1754875842967,-2511.67,0.00018858,2]
[378462670,1754875842976,-2918.43,0.00018858,2]
[378462672,1754875842985,-1850.36,0.00018858,2]
[378462675,1754875842994,-400.0,0.00018858,2]
[378462677,1754875843003,-1153.04,0.00018858,2]
[378462680,1754875843012,-400.0,0.00018858,2]
[378462682,1754875843021,-1007.67,0.00018858,2]
[378462685,1754875843030,-761.88,0.00018858,2]
[378462687,1754875843038,-1334.51,0.00018858,2]
[378462690,1754875843047,-507.05,0.00018858,2]
[378462692,1754875843056,-400.0,0.00018858,2]
[378462694,1754875843065,-400.0,0.00018858,2]
[378462697,1754875843074,-531.48,0.00018858,2]
[378462699,1754875843083,-400.0,0.00018858,2]
[378462701,1754875843092,-3174.33,0.00018858,2]
[378462702,1754875843101,-894.63,0.00018858,2]
[378462705,1754875843111,-2001.17,0.00018858,2]
[378462707,1754875843121,-400.0,0.00018858,2]
[378462708,1754875843130,-812.38,0.00018858,2]
[378462711,1754875843139,-468.14,0.00018858,2]
[378462713,1754875843148,-1297.76,0.00018858,2]
[378462714,1754875843157,-951.84,0.00018858,2]
[378462717,1754875843166,-429.36,0.00018858,2]
[378462718,1754875843176,-1252.76,0.00018858,2]
[378462720,1754875843185,-1083.4,0.00018858,2]
[378462722,1754875843194,-1430.34,0.00018858,2]
[378462725,1754875843203,-673.39,0.00018858,2]
[378462726,1754875843214,-655.05,0.00018858,2]
[378462729,1754875843223,-594.21,0.00018858,2]
[378462730,1754875843233,-911.93,0.00018858,2]
[378462733,1754875843243,-400.0,0.00018858,2]
[378462734,1754875843252,-400.0,0.00018858,2]
[378462736,1754875843261,-1603.219,0.00018858,2]
[378462739,1754875843271,-400.0,0.00018859,2]
[378462741,1754875843280,-461.85,0.00018859,2]
[378462742,1754875843289,-400.0,0.00018859,2]
[378462745,1754875843299,-400.0,0.00018859,2]
[378462747,1754875843309,-400.0,0.00018859,2]
[378462749,1754875843318,-400.0,0.00018859,2]
[378462751,1754875843327,-400.0,0.00018859,2]
[378462752,1754875843336,-400.0,0.00018859,2]
[378462755,1754875843345,-400.0,0.00018859,2]
[378462756,1754875843354,-400.0,0.00018859,2]
[378462759,1754875843364,-400.0,0.00018859,2]
[378462761,1754875843378,-400.0,0.00018859,2]
[378462763,1754875843388,-443.82,0.00018859,2]
[378462765,1754875843397,-400.0,0.00018859,2]
[378462767,1754875843406,-400.0,0.00018859,2]
[378462768,1754875843416,-400.0,0.00018859,2]
[378462771,1754875843425,-400.0,0.00018859,2]
[378462773,1754875843435,-400.0,0.00018859,2]
[378462774,1754875843448,-400.0,0.00018859,2]
[378462777,1754875843457,-400.0,0.00018859,2]
[378462779,1754875843467,-400.0,0.00018859,2]
[378462780,1754875843476,-400.0,0.00018859,2]
[378462783,1754875843485,-400.0,0.00018859,2]
[378462785,1754875843499,-819.34,0.00018859,2]
[378462786,1754875843508,-400.0,0.00018859,2]
[378462788,1754875843517,-494.5,0.00018859,2]
[378462790,1754875843526,-400.0,0.00018859,2]
[378462792,1754875843536,-400.0,0.00018859,2]
[378462794,1754875843546,-400.0,0.00018859,2]
[378462796,1754875843555,-400.0,0.00018859,2]
[378462798,1754875843565,-400.0,0.00018859,2]
[378462801,1754875843575,-475.54,0.00018859,2]
[378462804,1754875843584,-400.0,0.00018859,2]
[378462808,1754875843594,-400.0,0.00018859,2]
[378462809,1754875843603,-400.0,0.00018859,2]
[378462811,1754875843613,-400.0,0.00018859,2]
[378462813,1754875843622,-400.0,0.00018859,2]
[378462816,1754875843632,-400.0,0.00018859,2]
[378462817,1754875843641,-400.0,0.00018859,2]
[378462820,1754875843651,-700.65,0.00018859,2]
[378462822,1754875843660,-400.0,0.00018859,2]
[378462824,1754875843670,-400.0,0.00018859,2]
[378462826,1754875843683,-651.36,0.00018859,2]
[378462828,1754875843692,-400.0,0.00018859,2]
[378462830,1754875843702,-405.02,0.00018859,2]
[378462832,1754875843711,-400.0,0.00018859,2]
[378462834,1754875843720,-400.0,0.00018859,2]
[378462836,1754875843730,-400.0,0.00018859,2]
[378462838,1754875843740,-400.0,0.00018859,2]
[378462840,1754875843750,-400.0,0.00018859,2]
[378462842,1754875843759,-556.28,0.00018859,2]
[378462844,1754875843770,-400.0,0.00018859,2]
[378462847,1754875843779,-400.0,0.00018859,2]
[378462849,1754875843789,-697.27,0.00018859,2]
[378462851,1754875843798,-400.0,0.00018859,2]
[378462853,1754875843807,-400.0,0.00018859,2]
[378462854,1754875843817,-400.0,0.00018859,2]
[378462857,1754875843827,-400.0,0.00018859,2]
[378462858,1754875843836,-400.0,0.00018859,2]
[378462860,1754875843846,-400.0,0.00018859,2]
[378462862,1754875843855,-603.43,0.00018859,2]
[378462864,1754875843866,-400.0,0.00018859,2]
[378462866,1754875843877,-421.68,0.00018859,2]
[378462868,1754875843887,-400.0,0.00018859,2]
[378462871,1754875843896,-400.0,0.00018859,2]
[378462873,1754875843906,-400.0,0.00018859,2]
[378462875,1754875843916,-604.83,0.00018859,2]
[378462877,1754875843925,-400.0,0.00018859,2]
[378462878,1754875843935,-422.14,0.00018859,2]
[378462881,1754875843944,-400.0,0.00018859,2]
[378462883,1754875843954,-400.0,0.00018859,2]
[378462884,1754875843964,-400.0,0.00018859,2]
[378462886,1754875843973,-405.06,0.00018859,2]
[378462889,1754875843983,-400.0,0.00018859,2]
[378462891,1754875843992,-570.7,0.00018859,2]
[378462893,1754875844002,-400.0,0.00018859,2]
[378462895,1754875844011,-400.0,0.00018859,2]
[378462897,1754875844021,-508.29,0.00018859,2]
[378462899,1754875844031,-400.0,0.00018859,2]
[378462901,1754875844041,-300.0,0.00018859,2]
[378462903,1754875844050,-494.48,0.00018859,2]
[378462905,1754875844061,-489.46,0.00018859,2]
[378462907,1754875844071,-400.0,0.00018859,2]
[378462909,1754875844080,-605.35,0.00018859,2]
[378462911,1754875844090,-400.0,0.00018859,2]
[378462913,1754875844099,-400.0,0.00018859,2]
[378462915,1754875844109,-495.87,0.00018859,2]
[378462917,1754875844117,-400.0,0.00018859,2]
[378462919,1754875844130,-400.0,0.00018859,2]
[378462921,1754875844139,-400.0,0.00018859,2]
[378462923,1754875844149,-400.0,0.00018859,2]
[378462925,1754875844158,-400.0,0.00018859,2]
[378462927,1754875844168,-400.0,0.00018859,2]
[378462929,1754875844177,-402.02,0.00018859,2]
[378462931,1754875844186,-400.0,0.00018859,2]
[378462933,1754875844196,-400.0,0.00018859,2]
[378462935,1754875844205,-400.0,0.00018859,2]
[378462937,1754875844214,-400.0,0.00018859,2]
[378462939,1754875844224,-732.88,0.00018859,2]
[378462941,1754875844233,-400.0,0.00018859,2]
[378462943,1754875844243,-556.25,0.00018859,2]
[378462945,1754875844252,-400.0,0.00018859,2]
[378462947,1754875844261,-400.0,0.00018859,2]
[378462949,1754875844271,-400.0,0.00018859,2]
[378462951,1754875844280,-450.19,0.00018859,2]
[378462953,1754875844289,-252.63498976,0.00018859,2]
[378462955,1754875844299,-417.56,0.00018859,2]
[378462957,1754875844308,-400.0,0.00018859,2]
[378462960,1754875844317,-400.0,0.00018859,2]
[378462962,1754875844326,-562.04,0.00018859,2]
[378462963,1754875844336,-400.0,0.00018859,2]
[378462965,1754875844345,-400.0,0.00018859,2]
[378462968,1754875844354,-548.19,0.00018859,2]
[378462970,1754875844368,-400.0,0.00018859,2]
[378462972,1754875844382,-400.0,0.00018859,2]
[378462974,1754875844391,-400.0,0.00018859,2]
[378462976,1754875844401,-400.0,0.00018859,2]
[378462977,1754875844411,-400.0,0.00018859,2]
[378462980,1754875844420,-400.0,0.00018859,2]
[378462981,1754875844430,-400.0,0.00018859,2]
[378462983,1754875844440,-400.0,0.00018859,2]
[378462986,1754875844451,-1053.76,0.00018859,2]
[378462988,1754875844462,-787.21,0.00018859,2]
[378462989,1754875844471,-715.19,0.00018859,2]
[378462992,1754875844482,-400.0,0.00018859,2]
[378462994,1754875844491,-499.44,0.00018859,2]
[378462996,1754875844501,-400.0,0.00018859,2]
[378462998,1754875844510,-400.0,0.00018859,2]
[378463000,1754875844519,-400.0,0.00018859,2]
[378463002,1754875844529,-447.45,0.00018859,2]
[378463004,1754875844538,-400.0,0.00018859,2]
[378463006,1754875844548,-400.0,0.00018859,2]
[378463008,1754875844557,-400.0,0.00018859,2]
[378463010,1754875844567,-477.31,0.00018859,2]
[378463012,1754875844577,-343.39590529,0.00018859,2]
[378463014,1754875844587,-404.51,0.00018859,2]
[378463016,1754875844597,-400.0,0.00018859,2]
[378463018,1754875844606,-400.0,0.00018859,2]
[378463020,1754875844615,-400.0,0.00018859,2]
[378463022,1754875844628,-604.87,0.00018859,2]
[378463024,1754875844638,-400.0,0.00018859,2]
[378463026,1754875844647,-400.0,0.00018859,2]
[378463028,1754875844657,-400.0,0.00018859,2]
[378463030,1754875844666,-400.0,0.00018859,2]
[378463032,1754875844677,-400.0,0.00018859,2]
[378463034,1754875844687,-400.0,0.00018859,2]
[378463036,1754875844697,-400.0,0.00018859,2]
[378463038,1754875844706,-400.0,0.00018859,2]
[378463040,1754875844715,-400.0,0.00018859,2]
[378463042,1754875844726,-766.99,0.00018859,2]
[378463044,1754875844735,-400.0,0.00018859,2]
[378463046,1754875844745,-530.31,0.00018859,2]
[378463048,1754875844754,-400.0,0.00018859,2]
[378463050,1754875844764,-400.0,0.00018859,2]
[378463052,1754875844784,-410.24,0.00018859,2]
[378463054,1754875844800,-400.0,0.00018859,2]
[378463057,1754875844811,-400.0,0.00018859,2]
[378463059,1754875844820,-328.52507335,0.00018859,2]
[378463061,1754875844830,-400.0,0.00018859,2]
[378463062,1754875844839,-400.0,0.00018859,2]
[378463063,1754875844849,-400.0,0.00018859,2]
[378463064,1754875844859,-400.0,0.00018859,2]
[378463065,1754875844869,-477.74,0.00018859,2]
[378463066,1754875844880,-400.0,0.00018859,2]
[378463067,1754875844890,-400.0,0.00018859,2]
[378463068,1754875844900,-584.61,0.00018859,2]
[378463069,1754875844910,-400.0,0.00018859,2]
[378463070,1754875844920,-400.0,0.00018859,2]
[378463072,1754875844929,-809.0,0.00018859,2]
[378463074,1754875844939,-400.0,0.00018859,2]
[378463076,1754875844948,-417.06,0.00018859,2]
[378463078,1754875844958,-400.0,0.00018859,2]
[378463080,1754875844968,-400.0,0.00018859,2]
[378463082,1754875844977,-1763.46,0.00018859,2]
[378463084,1754875844986,-400.0,0.00018859,2]
[378463086,1754875844995,-400.0,0.00018859,2]
[378463088,1754875845004,-820.82,0.00018859,2]
[378463090,1754875845014,-400.0,0.00018859,2]
[378463092,1754875845023,-400.0,0.00018859,2]
[378463094,1754875845033,-921.43,0.00018859,2]
[378463096,1754875845042,-400.0,0.00018859,2]
[378463098,1754875845051,-400.0,0.00018859,2]
[378463100,1754875845061,-400.0,0.00018859,2]
[378463102,1754875845070,-400.0,0.00018859,2]
[378463104,1754875845080,-400.0,0.00018859,2]
[378463106,1754875845089,-876.63,0.00018859,2]
[378463108,1754875845099,-400.0,0.00018859,2]
[378463110,1754875845108,-554.77,0.00018859,2]
[378463112,1754875845117,-500.0,0.00018859,2]
[378463114,1754875845127,-400.0,0.00018859,2]
[378463116,1754875845137,-400.0,0.00018859,2]
[378463118,1754875845146,-400.0,0.00018859,2]
[378463120,1754875845155,-400.0,0.00018859,2]
[378463122,1754875845165,-624.46,0.00018859,2]
[378463124,1754875845174,-717.54,0.00018859,2]
[378463126,1754875845183,-653.18,0.00018859,2]
[378463128,1754875845192,-400.0,0.00018859,2]
[378463130,1754875845202,-400.0,0.00018859,2]
[378463132,1754875845212,-400.0,0.00018859,2]
[378463134,1754875845221,-400.0,0.00018859,2]
[378463136,1754875845231,-426.78,0.00018859,2]
[378463138,1754875845240,-400.0,0.00018859,2]
[378463140,1754875845249,-400.0,0.00018859,2]
[378463142,1754875845259,-400.0,0.00018859,2]
[378463144,1754875845268,-1196.65,0.00018859,2]
[378463146,1754875845277,-400.0,0.00018859,2]
[378463148,1754875845287,-1197.36,0.00018859,2]
[378463150,1754875845296,-400.0,0.00018859,2]
[378463152,1754875845305,-400.0,0.00018859,2]
[378463154,1754875845315,-400.0,0.00018859,2]
[378463156,1754875845324,-400.0,0.00018859,2]
[378463158,1754875845333,-465.78,0.00018859,2]
[378463160,1754875845343,-400.0,0.00018859,2]
[378463162,1754875845352,-869.57,0.00018859,2]
[378463164,1754875845361,-400.0,0.00018859,2]
[378463166,1754875845374,-622.75,0.00018859,2]
[378463168,1754875845383,-519.32,0.00018859,2]
[378463170,1754875845393,-400.0,0.00018859,2]
[378463172,1754875845402,-400.0,0.00018859,2]
[378463174,1754875845412,-519.61,0.00018859,2]
[378463176,1754875845422,-400.0,0.00018859,2]
[378463178,1754875845431,-400.0,0.00018859,2]
[378463180,1754875845440,-590.75,0.00018859,2]
[378463182,1754875845450,-400.0,0.00018859,2]
[378463184,1754875845459,-400.0,0.00018859,2]
[378463186,1754875845468,-578.03,0.00018859,2]
[378463188,1754875845477,-400.0,0.00018859,2]
[378463189,1754875845486,-400.0,0.00018859,2]
[378463192,1754875845495,-661.49,0.00018859,2]
[378463194,1754875845505,-476.73,0.00018859,2]
[378463196,1754875845514,-400.0,0.00018859,2]
[378463198,1754875845524,-400.0,0.00018859,2]
[378463199,1754875845533,-927.73,0.00018859,2]
[378463202,1754875845543,-400.0,0.00018859,2]
[378463203,1754875845552,-400.0,0.00018859,2]
[378463206,1754875845563,-400.0,0.00018859,2]
[378463208,1754875845573,-400.0,0.00018859,2]
[378463210,1754875845583,-400.0,0.00018859,2]
[378463212,1754875845595,-400.0,0.00018859,2]
[378463214,1754875845605,-400.0,0.00018859,2]
[378463216,1754875845615,-400.0,0.00018859,2]
[378463218,1754875845626,-400.0,0.00018859,2]
[378463220,1754875845635,-1136.17,0.00018859,2]
[378463222,1754875845644,-400.0,0.00018859,2]
[378463224,1754875845654,-400.0,0.00018859,2]
[378463226,1754875845663,-401.51,0.00018859,2]
[378463228,1754875845672,-400.0,0.00018859,2]
[378463229,1754875845681,-201.6228876,0.00018859,2]
[378463232,1754875845691,-152.58678654,0.00018859,2]
[378463233,1754875845700,-683.39,0.00018859,2]
[378463235,1754875845709,-400.0,0.00018859,2]
[378463238,1754875845718,-400.0,0.00018859,2]
[378463240,1754875845728,-400.0,0.00018859,2]
[378463242,1754875845739,-473.7,0.00018859,2]
[378463243,1754875845748,-400.0,0.00018859,2]
[378463247,1754875845757,-631.54,0.00018859,2]
[378463248,1754875845766,-1864.66,0.00018859,2]
[378463250,1754875845776,-400.0,0.00018859,2]
[378463252,1754875845785,-597.33,0.00018859,2]
[378463255,1754875845794,-400.0,0.00018859,2]
[378463257,1754875845804,-744.57,0.00018859,2]
[378463258,1754875845813,-400.0,0.00018859,2]
[378463261,1754875845823,-865.87,0.00018859,2]
[378463263,1754875845833,-597.71,0.00018859,2]
[378463264,1754875845843,-400.0,0.00018859,2]
[378463267,1754875845852,-400.0,0.00018859,2]
[378463270,1754875845862,-400.0,0.00018859,2]
[378463272,1754875845872,-400.0,0.00018859,2]
[378463274,1754875845883,-500.0,0.00018859,2]
[378463276,1754875845892,-642.65,0.00018859,2]
[378463278,1754875845901,-2063.56,0.00018859,2]
[378463280,1754875845911,-400.0,0.00018859,2]
[378463282,1754875845920,-400.0,0.00018859,2]
[378463284,1754875845929,-699.07,0.00018859,2]
[378463286,1754875845939,-400.0,0.00018859,2]
[378463288,1754875845948,-400.0,0.00018859,2]
[378463290,1754875845958,-400.0,0.00018859,2]
[378463292,1754875845968,-367.49807179,0.00018859,2]
[378463294,1754875845977,-400.0,0.00018859,2]
[378463296,1754875845986,-400.0,0.00018859,2]
[378463298,1754875845996,-438.67,0.00018859,2]
[378463300,1754875846005,-1425.99,0.00018859,2]
[378463302,1754875846015,-400.0,0.00018859,2]
[378463304,1754875846024,-610.57,0.00018859,2]
[378463306,1754875846034,-545.7,0.00018859,2]
[378463308,1754875846044,-400.0,0.00018859,2]
[378463310,1754875846053,-562.99,0.00018859,2]
[378463312,1754875846062,-1132.89,0.00018859,2]
[378463314,1754875846072,-433.84807818,0.00018859,2]
[378463316,1754875846083,-400.0,0.00018859,2]
[378463318,1754875846092,-400.0,0.00018859,2]
[378463320,1754875846102,-400.0,0.00018859,2]
[378463322,1754875846111,-1894.06,0.00018859,2]
[378463324,1754875846121,-1476.65,0.00018859,2]
[378463326,1754875846131,-400.0,0.00018859,2]
[378463328,1754875846143,-400.0,0.00018859,2]
[378463330,1754875846153,-400.0,0.00018859,2]
[378463332,1754875846164,-442.84,0.00018859,2]
[378463334,1754875846174,-158.01460027,0.00018859,2]
[378463336,1754875846184,-925.04,0.00018859,2]
[378463338,1754875846194,-400.0,0.00018859,2]
[378463340,1754875846204,-400.0,0.00018859,2]
[378463342,1754875846215,-400.0,0.00018859,2]
[378463344,1754875846235,-1441.85,0.00018859,2]
[378463346,1754875846246,-469.82,0.00018859,2]
[378463348,1754875846256,-400.0,0.00018859,2]
[378463350,1754875846266,-741.41,0.00018859,2]
[378463352,1754875846275,-2756.91,0.00018859,2]
[378463354,1754875846285,-400.0,0.00018859,2]
[378463356,1754875846294,-400.0,0.00018859,2]
[378463358,1754875846304,-1057.2,0.00018859,2]
[378463360,1754875846313,-400.0,0.00018859,2]
[378463362,1754875846322,-400.0,0.00018859,2]
[378463364,1754875846332,-3475.63,0.00018859,2]
[378463366,1754875846342,-2391.7,0.00018859,2]
[378463368,1754875846351,-962.68,0.00018859,2]
[378463370,1754875846361,-400.0,0.00018859,2]
[378463372,1754875846373,-479.53,0.00018859,2]
[378463375,1754875846383,-400.0,0.00018859,2]
[378463377,1754875846392,-1178.01,0.00018859,2]
[378463379,1754875846402,-400.0,0.00018859,2]
[378463381,1754875846411,-948.42,0.00018859,2]
[378463383,1754875846420,-400.0,0.00018859,2]
[378463385,1754875846431,-422.11,0.00018859,2]
[378463387,1754875846441,-400.0,0.00018859,2]
[378463389,1754875846450,-544.38,0.00018859,2]
[378463391,1754875846460,-400.0,0.00018859,2]
[378463393,1754875846469,-400.0,0.00018859,2]
[378463394,1754875846479,-1955.56,0.00018859,2]
[378463396,1754875846488,-587.72,0.00018859,2]
[378463399,1754875846498,-13603.02,0.00018859,2]
[378463401,1754875846507,-400.0,0.00018859,2]
[378463403,1754875846516,-674.67,0.00018859,2]
[378463405,1754875846526,-400.0,0.00018859,2]
[378463406,1754875846535,-400.0,0.00018859,2]
[378463408,1754875846545,-400.0,0.00018859,2]
[378463411,1754875846554,-522.11,0.00018859,2]
[378463438,1754875846805,-400.0,0.00018859,2]
[378463441,1754875846814,-406.33,0.00018859,2]
[378463443,1754875846824,-400.0,0.00018859,2]
[378463445,1754875846834,-1237.31,0.00018859,2]
[378463447,1754875846843,-400.0,0.00018859,2]
[378463449,1754875846853,-400.0,0.00018859,2]
[378463450,1754875846862,-2660.1,0.00018859,2]
[378463451,1754875846871,-952.36,0.00018859,2]
[378463452,1754875846882,-1182.71,0.00018859,2]
[378463453,1754875846891,-400.0,0.00018859,2]
[378463454,1754875846900,-2950.15,0.00018859,2]
[378463455,1754875846912,-400.0,0.00018859,2]
[378463456,1754875846922,-400.0,0.00018859,2]
[378463457,1754875846931,-185.55251788,0.00018859,2]
[378463458,1754875846941,-494.81,0.00018859,2]
[378463460,1754875846950,-447.3,0.00018859,2]
[378463462,1754875846959,-400.0,0.00018859,2]
[378463464,1754875846968,-400.0,0.00018859,2]
[378463466,1754875846978,-400.0,0.00018859,2]
[378463468,1754875846987,-706.86,0.00018859,2]
[378463470,1754875846996,-400.0,0.00018859,2]
[378463472,1754875847006,-1019.28,0.00018859,2]
[378463474,1754875847016,-400.0,0.00018859,2]
[378463476,1754875847025,-400.0,0.00018859,2]
[378463478,1754875847034,-1283.49,0.00018859,2]
[378463480,1754875847043,-400.0,0.00018859,2]
[378463482,1754875847053,-988.65,0.00018859,2]
[378463484,1754875847063,-1717.64,0.00018859,2]
[378463486,1754875847072,-1900.4,0.00018859,2]
[378463488,1754875847081,-600.03,0.00018859,2]
[378463490,1754875847091,-400.0,0.00018859,2]
[378463492,1754875847101,-400.0,0.00018859,2]
[378463494,1754875847110,-503.8,0.00018859,2]
[378463496,1754875847119,-400.0,0.00018859,2]
[378463498,1754875847128,-490.11,0.00018859,2]
[378463500,1754875847138,-1287.01,0.00018859,2]
[378463502,1754875847147,-605.97,0.00018859,2]
[378463504,1754875847157,-723.95,0.00018859,2]
[378463506,1754875847166,-400.0,0.00018859,2]
[378463508,1754875847180,-400.0,0.00018859,2]
[378463510,1754875847189,-474.22,0.00018859,2]
[378463512,1754875847198,-1503.41,0.00018859,2]
[378463514,1754875847208,-635.1,0.00018859,2]
[378463516,1754875847217,-400.0,0.00018859,2]
[378463518,1754875847227,-1874.76,0.00018859,2]
[378463520,1754875847236,-1176.99,0.00018859,2]
[378463523,1754875847247,-445.94,0.00018859,2]
[378463524,1754875847257,-526.29,0.00018859,2]
[378463527,1754875847266,-400.0,0.00018859,2]
[378463529,1754875847278,-400.0,0.00018859,2]
[378463531,1754875847288,-3728.87,0.00018859,2]
[378463533,1754875847297,-1174.29,0.00018859,2]
[378463534,1754875847308,-400.0,0.00018859,2]
[378463537,1754875847318,-1257.31,0.00018859,2]
[378463539,1754875847327,-1881.14,0.00018859,2]
[378463541,1754875847336,-400.0,0.00018859,2]
[378463543,1754875847345,-781.57,0.00018859,2]
[378463544,1754875847355,-489.39,0.00018859,2]
[378463546,1754875847365,-400.0,0.00018859,2]
[378463549,1754875847380,-893.19,0.00018859,2]
[378463551,1754875847389,-400.0,0.00018859,2]
[378463552,1754875847398,-400.0,0.00018859,2]
[378463555,1754875847409,-400.0,0.00018859,2]
[378463556,1754875847418,-400.0,0.00018859,2]
[378463559,1754875847428,-488.88,0.00018859,2]
[378463560,1754875847437,-693.17,0.00018859,2]
[378463563,1754875847448,-1560.4,0.00018859,2]
[378463565,1754875847459,-400.0,0.00018859,2]
[378463567,1754875847468,-400.0,0.00018859,2]
[378463569,1754875847477,-400.0,0.00018859,2]
[378463570,1754875847486,-400.0,0.00018859,2]
[378463573,1754875847496,-1210.11,0.00018859,2]
[378463574,1754875847505,-418.70046595,0.00018859,2]
[378463576,1754875847514,-438.62,0.00018859,2]
[378463578,1754875847523,-791.68,0.00018859,2]
[378463580,1754875847533,-446.13,0.00018859,2]
[378463583,1754875847543,-1564.07,0.00018859,2]
[378463585,1754875847553,-1819.32,0.00018859,2]
[378463587,1754875847562,-400.0,0.00018859,2]
[378463589,1754875847572,-246.41977109,0.00018859,2]
[378463591,1754875847581,-429.12,0.00018859,2]
[378463593,1754875847591,-1700.11,0.00018859,2]
[378463595,1754875847600,-1669.28,0.00018859,2]
[378463597,1754875847610,-400.0,0.00018859,2]
[378463598,1754875847619,-580.69,0.00018859,2]
[378463600,1754875847630,-400.0,0.00018859,2]